bitfinex-derivatives/quotes_SOLF0:USTF0_20250404
["timestamp","ask_amount","ask_price","bid_price","bid_amount"]
[1743740642786,0.05594228,114.86,114.83,10.10984236]
[1743740643290,0.05594228,114.86,114.85,8.7103]
[1743740643493,0.05594228,114.86,114.85,18.76045182]
[1743740643992,0.05594228,114.86,114.85,8.7103]
[1743740645190,0.05594228,114.86,114.84,40.5506]
[1743740645788,0.05594228,114.86,114.85,8.7103]
[1743740646893,0.05594228,114.86,114.85,18.76045182]
[1743740650901,0.05594228,114.86,114.84,55.22195182]
[1743740651098,0.05594228,114.86,114.84,46.51135182]
[1743740651801,0.05594228,114.86,114.85,8.7103]
[1743740653799,0.05594228,114.86,114.84,55.22195182]
[1743740654297,0.05594228,114.86,114.84,23.38195182]
[1743740654501,10.05015182,114.85,114.83,0.05969054]
[1743740654709,10.05015182,114.84,114.83,0.05969054]
[1743740654902,18.76115182,114.84,114.83,0.05969054]
[1743740658615,8.7139,114.81,114.79,8.7145]
[1743740658901,10.05015182,114.83,114.78,41.87015182]
[1743740659104,8.7133,114.81,114.79,8.7144]
[1743740659798,8.77154548,114.81,114.79,8.7716761]
[1743740664804,0.05824548,114.81,114.8,8.7141]
[1743740671712,12.22565182,114.86,114.8,10.05015182]
[1743740672014,12.22565182,114.86,114.81,10.05015182]
[1743740672207,8.7106,114.85,114.81,10.05015182]
[1743740672409,2.1755,114.86,114.83,8.7114]
[1743740672615,10.05015182,114.87,114.83,10.05015182]
[1743740672812,0.05988538,114.86,114.84,8.7107]
[1743740673816,8.76958538,114.86,114.84,8.7107]
[1743740674418,0.05988538,114.86,114.85,8.7103]
[1743740675816,0.05988538,114.86,114.84,18.76075182]
[1743740676019,0.05988538,114.86,114.84,8.7106]
[1743740677718,0.05988538,114.86,114.85,8.7103]
[1743740687927,0.05988538,114.86,114.85,18.76045182]
[1743740690428,8.7069,114.9,114.85,10.05015182]
[1743740690646,8.7069,114.9,114.88,8.7077]
[1743740691331,10.05015182,114.92,114.89,8.7069]
[1743740691729,10.10503007,114.92,114.89,8.76629209]
[1743740692129,10.10503007,114.92,114.89,0.05939209]
[1743740692334,10.05015182,114.91,114.89,0.05939209]
[1743740693135,8.7065,114.9,114.89,0.05939209]
[1743740697239,8.7062,114.91,114.89,8.76659209]
[1743740697840,40.56027825,114.92,114.9,8.7065]
[1743740698037,8.76027825,114.92,114.89,0.05939209]
[1743740698538,8.76027825,114.92,114.9,8.7062]
[1743740699033,8.76027825,114.92,114.91,8.7057]
[1743740699336,8.76027825,114.92,114.89,0.05939209]
[1743740699538,8.76027825,114.92,114.9,8.7061]
[1743740701041,0.05487825,114.92,114.91,8.7057]
[1743740701436,0.05487825,114.92,114.89,10.10954391]
[1743740701636,8.76017825,114.92,114.9,8.7064]
[1743740702133,0.05487825,114.92,114.89,10.10954391]
[1743740702338,0.05487825,114.92,114.9,8.7058]
[1743740702538,0.05487825,114.92,114.89,10.10954391]
[1743740702942,0.05487825,114.92,114.91,8.7057]
[1743740705446,8.75987825,114.92,114.9,18.75615182]
[1743740705744,8.75987825,114.92,114.9,8.706]
[1743740707447,8.75987825,114.92,114.91,8.7057]
[1743740707837,0.05487825,114.92,114.91,8.7057]
[1743740708346,10.10503007,114.92,114.89,0.05939209]
[1743740708940,8.76017825,114.92,114.9,8.7064]
[1743740709137,0.05487825,114.92,114.9,8.7064]
[1743740709446,8.75987825,114.92,114.9,8.7064]
[1743740713048,8.75987825,114.92,114.91,8.7057]
[1743740713653,8.75987825,114.92,114.9,8.706]
[1743740715154,8.75987825,114.92,114.91,8.7057]
[1743740715657,8.75987825,114.92,114.9,8.706]
[1743740718256,0.05487825,114.92,114.91,8.7057]
[1743740720961,0.05487825,114.92,114.91,18.75585182]
[1743740721158,7.825e-05,114.92,114.91,18.75585182]
[1743740721359,7.825e-05,114.92,114.91,50.53585182]
[1743740725567,56.04555065,114.99,114.91,41.83015182]
[1743740725764,44.03805182,114.99,114.94,10.05015182]
[1743740725965,8.7008,114.98,114.95,8.7023]
[1743740726658,8.7666446,114.98,114.96,8.7018]
[1743740726866,0.0658446,114.98,114.95,10.10602186]
[1743740727066,0.0658446,114.98,114.96,10.05015182]
[1743740727270,0.0658446,114.98,114.97,8.7012]
[1743740728867,0.0658446,114.98,114.97,18.75135182]
[1743740729667,8.7662446,114.98,114.97,10.05015182]
[1743740729968,8.7662446,114.98,114.96,8.7016]
[1743740730168,8.7662446,114.98,114.96,18.75175182]
[1743740731770,0.0658446,114.98,114.97,8.7012]
[1743740733666,8.6978,115.02,114.97,41.81015182]
[1743740733970,12.00749883,115.03,114.99,10.05015182]
[1743740734179,12.00749883,115.03,115.0,8.6985]
[1743740734672,20.70459883,115.03,115.0,8.6985]
[1743740734872,20.76570868,115.03,115.0,8.75878786]
[1743740735172,20.76570868,115.03,115.0,0.06028786]
[1743740735570,8.6975,115.02,115.0,8.75888786]
[1743740736673,8.6975,115.02,115.0,0.06028786]
[1743740736973,0.06110985,115.03,115.0,0.06028786]
[1743740737170,0.06110985,115.03,115.0,8.75908786]
[1743740737472,8.6977,115.02,115.0,8.75908786]
[1743740738668,8.6982,115.01,115.0,0.06028786]
[1743740740472,8.6979,115.02,115.0,8.75918786]
[1743740742978,8.6982,115.01,115.0,0.06028786]
[1743740743378,0.06110985,115.03,115.0,10.11043968]
[1743740743578,0.06110985,115.03,115.01,10.05015182]
[1743740744380,0.06110985,115.03,115.02,8.6974]
[1743740746281,0.06110985,115.03,115.01,18.74785182]
[1743740746581,0.06110985,115.03,115.01,8.6977]
[1743740746775,8.75770985,115.03,115.01,8.6977]
[1743740746975,79.76999534,115.09,115.02,10.05015182]
[1743740747183,8.6948,115.06,115.03,10.05015182]
[1743740747383,8.6948,115.06,115.03,18.74615182]
[1743740747580,8.6948,115.06,115.03,10.05015182]
[1743740748184,8.76045907,115.06,115.03,10.11445796]
[1743740748384,8.76045907,115.06,115.04,8.6956]
[1743740748577,0.06565907,115.06,115.03,10.11445796]
[1743740749074,0.06565907,115.06,115.05,8.6951]
[1743740749273,8.76005907,115.06,115.03,10.11445796]
[1743740749476,8.76005907,115.06,115.04,8.6956]
[1743740751386,8.6954,115.05,115.03,8.76060614]
[1743740751984,8.6959,115.04,115.03,0.06430614]
[1743740753689,8.6955,115.05,115.03,8.76090614]
[1743740755084,0.06565907,115.06,115.03,10.11445796]
[1743740756285,8.76005907,115.06,115.04,8.6955]
[1743740756788,0.06565907,115.06,115.05,8.6951]
[1743740757879,0.06565907,115.06,115.05,18.74525182]
[1743740760292,0.06565907,115.06,115.05,8.6951]
[1743740760591,0.06565907,115.06,115.04,8.6954]
[1743740761293,0.06565907,115.06,115.05,8.6951]
[1743740761897,8.76005907,115.06,115.04,8.6954]
[1743740762096,0.06565907,115.06,115.03,0.06430614]
[1743740762701,0.06565907,115.06,115.04,8.6952]
[1743740763502,8.76015907,115.06,115.04,8.6952]
[1743740766604,8.6951,115.05,115.03,8.76050614]
[1743740766905,0.06565907,115.06,115.03,0.06430614]
[1743740767103,8.76045907,115.06,115.04,8.6959]
[1743740768207,8.6951,115.05,115.03,18.81065796]
[1743740768409,0.06565907,115.06,115.03,10.11445796]
[1743740768708,8.76025907,115.06,115.03,0.06430614]
[1743740768896,8.76025907,115.06,115.04,8.6956]
[1743740769309,0.06565907,115.06,115.03,0.06430614]
[1743740769508,10.11581089,115.06,115.03,0.06430614]
[1743740770204,8.6959,115.04,115.03,0.06430614]
[1743740770608,10.11581089,115.06,115.03,0.06430614]
[1743740770810,8.6956,115.05,115.03,8.76090614]
[1743740774112,8.6956,115.05,115.04,8.6959]
[1743740774309,8.6956,115.05,115.03,0.06430614]
[1743740774810,8.76045907,115.06,115.03,0.06430614]
[1743740775212,8.76045907,115.06,115.04,8.6956]
[1743740775408,8.6951,115.05,115.03,0.06430614]
[1743740775907,8.6951,115.05,115.03,8.76070614]
[1743740776105,8.76045907,115.06,115.03,0.06430614]
[1743740776309,0.06565907,115.06,115.04,8.6959]
[1743740776507,0.06565907,115.06,115.03,0.06430614]
[1743740777110,8.6951,115.05,115.03,8.76040614]
[1743740777312,0.06565907,115.06,115.03,0.06430614]
[1743740777807,8.76075907,115.06,115.04,8.6959]
[1743740778007,0.06565907,115.06,115.05,10.05015182]
[1743740778207,0.06565907,115.06,115.05,18.74525182]
[1743740785318,44.06785182,115.1,115.08,8.6924]
[1743740785319,8.6918,115.1,115.08,8.6924]
[1743740786620,0.06111291,115.1,115.08,8.74813162]
[1743740787420,8.75251291,115.1,115.08,8.74813162]
[1743740788223,8.6921,115.09,115.08,0.05573162]
[1743740788623,0.06111291,115.1,115.08,0.05573162]
[1743740788924,8.75301291,115.1,115.08,0.05573162]
[1743740789123,8.75301291,115.1,115.08,8.74853162]
[1743740789424,0.06111291,115.1,115.08,10.10588344]
[1743740789619,0.06111291,115.1,115.09,10.05015182]
[1743740790725,0.06111291,115.1,115.09,18.74225182]
[1743740797333,0.06111291,115.1,115.09,8.6921]
[1743740797629,0.06111291,115.1,115.08,8.74813162]
[1743740797930,0.06111291,115.1,115.08,0.05573162]
[1743740798130,0.06111291,115.1,115.09,8.6921]
[1743740799329,0.06111291,115.1,115.08,10.10588344]
[1743740800729,0.06111291,115.1,115.08,18.79828344]
[1743740801031,0.06111291,115.1,115.08,10.10588344]
[1743740801430,0.06111291,115.1,115.09,8.6921]
[1743740803832,8.75241291,115.1,115.08,18.79848344]
[1743740804826,8.75241291,115.1,115.08,8.74833162]
[1743740805023,8.6921,115.09,115.08,0.05573162]
[1743740805731,8.75291291,115.1,115.08,0.05573162]
[1743740806134,8.75291291,115.1,115.08,8.74853162]
[1743740808132,8.6921,115.09,115.08,0.05573162]
[1743740813541,8.75291291,115.1,115.08,8.74863162]
[1743740813839,8.6921,115.09,115.08,8.74863162]
[1743740814040,8.6921,115.09,115.08,0.05573162]
[1743740816744,18.80306473,115.1,115.08,0.05573162]
[1743740817948,0.06111291,115.1,115.08,8.74833162]
[1743740822052,0.06111291,115.1,115.09,8.6921]
[1743740822757,0.06111291,115.1,115.08,8.74833162]
[1743740824362,0.06111291,115.1,115.09,8.6921]
[1743740825357,0.06111291,115.1,115.09,18.74225182]
[1743740827266,14.29699883,115.14,115.09,10.05015182]
[1743740827563,14.29699883,115.14,115.1,10.05015182]
[1743740827758,22.98559883,115.14,115.11,8.6899]
[1743740827959,22.98559883,115.14,115.1,10.05015182]
[1743740828153,14.29699883,115.14,115.1,10.05015182]
[1743740828359,0.05717246,115.13,115.12,8.6894]
[1743740829460,0.05717246,115.13,115.12,18.73955182]
[1743740830361,48.02999534,115.16,115.12,10.05015182]
[1743740830569,48.02999534,115.16,115.15,10.05015182]
[1743740830962,48.02999534,115.16,115.15,18.73775182]
[1743740833369,96.11719589,115.17,115.16,8.6868]
[1743740833570,96.11719589,115.17,115.16,18.73695182]
[1743740833969,0.05720518,115.17,115.16,18.73695182]
[1743740834363,56.9156484,115.21,115.18,8.6849]
[1743740835371,56.97877522,115.21,115.18,8.74059602]
[1743740835772,8.6839,115.2,115.18,8.74059602]
[1743740836272,48.29567522,115.21,115.19,41.71015182]
[1743740836467,48.29567522,115.21,115.2,10.05015182]
[1743740836770,48.29567522,115.21,115.2,18.73395182]
[1743740836963,0.06312682,115.21,115.2,18.73395182]
[1743740845069,33.9692,115.27,115.2,10.05015182]
[1743740845270,44.01935182,115.27,115.22,10.05015182]
[1743740845475,10.05015182,115.26,115.21,10.05015182]
[1743740845674,10.05015182,115.26,115.22,8.6819]
[1743740845977,10.05015182,115.25,115.2,10.05015182]
[1743740846177,8.6812,115.24,115.2,10.05015182]
[1743740846375,8.6812,115.24,115.21,8.74288685]
[1743740846376,0.06298036,115.24,115.21,8.74288685]
[1743740846575,8.74408036,115.24,115.21,0.06028685]
[1743740846876,8.74408036,115.24,115.22,8.6822]
[1743740847479,8.74408036,115.24,115.22,8.682]
[1743740848281,8.74408036,115.24,115.21,18.79303867]
[1743740848676,8.74408036,115.24,115.21,10.11043867]
[1743740848980,8.74408036,115.24,115.22,8.6822]
[1743740850578,8.6816,115.23,115.21,8.74298685]
[1743740850777,8.6816,115.23,115.21,0.06028685]
[1743740851482,8.6816,115.23,115.21,8.74308685]
[1743740851983,8.74418036,115.24,115.21,8.74308685]
[1743740852784,8.74418036,115.24,115.22,8.6821]
[1743740857286,0.06298036,115.24,115.21,10.11043867]
[1743740857784,0.06298036,115.24,115.22,8.6816]
[1743740857982,8.74378036,115.24,115.22,8.6816]
[1743740859387,0.06298036,115.24,115.22,8.6816]
[1743740860785,8.74388036,115.24,115.22,8.6816]
[1743740860983,0.06298036,115.24,115.21,8.74288685]
[1743740861186,10.05015182,115.22,115.18,10.05015182]
[1743740861385,10.05015182,115.22,115.17,12.20625182]
[1743740861684,10.05015182,115.22,115.18,8.685]
[1743740861884,8.6836,115.21,115.18,8.685]
[1743740862389,8.74573468,115.21,115.18,8.75152002]
[1743740862583,0.06213468,115.21,115.19,8.6844]
[1743740864385,0.06213468,115.21,115.18,8.75112002]
[1743740865091,8.74563468,115.21,115.18,8.75112002]
[1743740865292,8.74563468,115.21,115.19,8.6845]
[1743740865884,0.06213468,115.21,115.19,10.05015182]
[1743740866091,0.06213468,115.21,115.2,10.05015182]
[1743740866690,0.06213468,115.21,115.2,18.73395182]
[1743740867189,0.06213468,115.21,115.2,10.05015182]
[1743740868592,0.06213468,115.21,115.19,18.73425182]
[1743740868793,8.74523468,115.21,115.18,18.80147184]
[1743740869092,8.74523468,115.21,115.18,8.75132002]
[1743740869892,0.06213468,115.21,115.19,8.6844]
[1743740871694,0.06213468,115.21,115.18,10.11667184]
[1743740872295,0.06213468,115.21,115.19,8.6839]
[1743740873197,8.74533468,115.21,115.19,8.6839]
[1743740873898,8.74533468,115.21,115.18,8.75152002]
[1743740874798,8.74533468,115.21,115.19,8.6844]
[1743740876300,0.06213468,115.21,115.19,8.6844]
[1743740877699,8.74533468,115.21,115.19,8.6845]
[1743740877901,8.74533468,115.21,115.18,0.06652002]
[1743740878802,8.74533468,115.21,115.19,8.6842]
[1743740879502,0.06213468,115.21,115.18,0.06652002]
[1743740880405,0.06213468,115.21,115.19,8.6842]
[1743740880702,8.74533468,115.21,115.19,8.6842]
[1743740881307,41.67015182,115.2,115.1,17.3824]
[1743740881509,10.05015182,115.18,115.12,10.05015182]
[1743740881710,31.62,115.17,115.12,10.05015182]
[1743740882010,31.62,115.17,115.13,10.05015182]
[1743740882510,0.05490674,115.16,115.15,8.6873]
[1743740884310,0.05490674,115.16,115.14,0.05894745]
[1743740884809,8.6876,115.15,115.14,0.05894745]
[1743740886319,8.6894,115.13,115.04,26.0863]
[1743740886509,31.62,115.13,115.09,10.05015182]
[1743740887114,8.6899,115.12,115.1,8.6911]
[1743740887413,8.74826579,115.12,115.1,8.75766808]
[1743740888216,8.6906,115.11,115.1,0.06656808]
[1743740888820,18.79871761,115.12,115.1,8.75766808]
[1743740889017,8.74856579,115.12,115.1,8.75766808]
[1743740889717,0.05836579,115.12,115.1,8.75766808]
[1743740889921,0.05836579,115.12,115.11,8.6906]
[1743740892911,10.10851761,115.12,115.06,10.05015182]
[1743740893112,31.62,115.13,115.06,10.05015182]
[1743740893113,10.05015182,115.11,115.06,10.05015182]
[1743740893322,40.3114,115.1,115.08,8.6925]
[1743740893522,31.62,115.1,115.06,10.05015182]
[1743740893918,10.05015182,115.12,115.07,10.05015182]
[1743740894221,0.05682217,115.09,115.08,10.05015182]
[1743740894411,40.3109,115.11,115.09,8.692]
[1743740894618,0.06513626,115.1,115.09,8.692]
[1743740895720,0.06513626,115.1,115.08,18.74255182]
[1743740895920,0.06513626,115.1,115.08,10.05015182]
[1743740896221,0.06513626,115.1,115.09,8.6921]
[1743740897117,0.06513626,115.1,115.08,18.74255182]
[1743740897521,0.06513626,115.1,115.08,10.05015182]
[1743740898117,0.06513626,115.1,115.09,8.6921]
[1743740898720,0.06513626,115.1,115.08,18.74245182]
[1743740899619,0.06513626,115.1,115.09,8.6921]
[1743740899824,8.75643626,115.1,115.08,10.05015182]
[1743740900122,0.06513626,115.1,115.08,10.05015182]
[1743740900525,0.06513626,115.1,115.09,8.6921]
[1743740910028,4.4491,115.16,115.09,8.6921]
[1743740910029,10.05015182,115.14,115.11,8.6905]
[1743740910229,31.64,115.14,115.09,10.05015182]
[1743740910434,2.3287,115.18,115.12,10.05015182]
[1743740910629,41.69015182,115.17,115.14,8.6883]
[1743740911327,8.6874,115.16,115.14,8.75128821]
[1743740912230,18.79197707,115.17,115.15,8.6876]
[1743740912732,18.79197707,115.17,115.14,8.75088821]
[1743740912933,8.687,115.16,115.14,8.75088821]
[1743740916231,8.74172525,115.17,115.15,8.6876]
[1743740919336,18.79187707,115.17,115.15,8.6876]
[1743740920536,8.6868,115.16,115.14,8.75098821]
[1743740921035,18.79187707,115.17,115.14,8.75098821]
[1743740921436,10.10537707,115.17,115.14,8.75098821]
[1743740922031,10.10537707,115.17,115.14,0.06298821]
[1743740922237,0.05522525,115.17,115.15,10.05015182]
[1743740922731,10.10537707,115.17,115.14,0.06298821]
[1743740923737,0.05522525,115.17,115.14,0.06298821]
[1743740923939,0.05522525,115.17,115.16,8.6868]
[1743740926536,10.10537707,115.17,115.14,0.06298821]
[1743740926741,10.05015182,115.16,115.14,0.06298821]
[1743740927238,8.6876,115.15,115.14,0.06298821]
[1743740927440,18.73775182,115.15,115.14,0.06298821]
[1743740929340,10.05015182,115.15,115.14,8.75128821]
[1743740929540,18.73725182,115.16,115.14,8.75128821]
[1743740929841,10.05015182,115.16,115.14,8.75128821]
[1743740930141,18.73745182,115.16,115.14,8.75128821]
[1743740933545,10.05015182,115.16,115.15,8.6876]
[1743740934047,18.73695182,115.16,115.14,8.75088821]
[1743740935248,8.6876,115.15,115.14,0.06298821]
[1743740936253,18.73775182,115.15,115.14,0.06298821]
[1743740936545,50.35775182,115.15,115.14,0.06298821]
[1743740936739,8.6892,115.13,115.09,10.05015182]
[1743740936944,10.05015182,115.14,115.09,10.05015182]
[1743740937552,18.73875182,115.14,115.12,8.6893]
[1743740937750,18.79737441,115.14,115.12,8.74426172]
[1743740939953,18.79737441,115.14,115.13,8.6891]
[1743740940155,8.74722259,115.14,115.13,8.6891]
[1743740940545,0.05862259,115.14,115.13,8.6891]
[1743740941353,0.05862259,115.14,115.13,18.73925182]
[1743740941757,0.05862259,115.14,115.13,8.6891]
[1743740943157,0.05862259,115.14,115.12,8.74446172]
[1743740944055,8.74732259,115.14,115.12,8.74446172]
[1743740944254,10.05015182,115.13,115.12,0.05496172]
[1743740944956,18.73925182,115.13,115.12,0.05496172]
[1743740946858,8.6908,115.11,115.07,7.0319]
[1743740947060,8.6908,115.11,115.09,8.6914]
[1743740947559,18.74045182,115.12,115.07,17.08205182]
[1743740947964,0.0646192,115.11,115.08,0.05490864]
[1743740948760,0.0646192,115.11,115.1,8.6913]
[1743740949450,0.0646192,115.11,115.1,18.74145182]
[1743740950362,18.73745182,115.16,115.1,10.05015182]
[1743740950556,18.73745182,115.16,115.11,10.05015182]
[1743740950960,18.73745182,115.16,115.13,8.6884]
[1743740951259,10.05015182,115.16,115.11,10.05015182]
[1743740951464,10.11036146,115.16,115.13,0.0549061]
[1743740952264,18.79726146,115.16,115.14,8.6878]
[1743740956868,8.6876,115.15,115.14,8.6878]
[1743740957369,8.6876,115.15,115.13,8.7435061]
[1743740957970,8.6883,115.14,115.13,0.0549061]
[1743740962174,50.33815182,115.15,115.13,8.7440061]
[1743740963072,8.6883,115.14,115.13,8.7440061]
[1743740963273,8.6883,115.14,115.13,0.0549061]
[1743740965279,8.6898,115.13,115.11,8.6902]
[1743740965478,10.05015182,115.13,115.08,10.05015182]
[1743740965878,10.05015182,115.13,115.1,8.6908]
[1743740966081,8.6902,115.12,115.1,8.6908]
[1743740966382,8.6902,115.12,115.11,8.6906]
[1743740966581,0.06071651,115.12,115.11,8.6906]
[1743740968586,8.75051651,115.12,115.11,8.6906]
[1743740968885,0.06071651,115.12,115.11,8.6906]
[1743740969381,8.75051651,115.12,115.1,8.75686721]
[1743740969682,8.75051651,115.12,115.1,0.06596721]
[1743740969882,8.75051651,115.12,115.1,8.75696721]
[1743740972884,8.6906,115.11,115.1,8.75696721]
[1743740973890,40.35101651,115.12,115.1,8.75696721]
[1743740974292,50.40116833,115.12,115.1,8.75696721]
[1743740977989,41.71086833,115.12,115.1,8.75696721]
[1743740978189,8.6906,115.11,115.1,0.06596721]
[1743740979901,8.6906,115.11,115.1,8.75726721]
[1743740980098,50.40116833,115.12,115.1,8.75726721]
[1743740980293,41.71086833,115.12,115.1,0.06596721]
[1743740980496,31.66071651,115.12,115.11,8.6906]
[1743740983699,40.35051651,115.12,115.1,8.75696721]
[1743740984996,31.66071651,115.12,115.11,8.6906]
[1743740985705,40.35051651,115.12,115.11,8.6906]
[1743740985901,31.66071651,115.12,115.11,8.6906]
[1743740986701,0.06071651,115.12,115.11,8.6906]
[1743741003014,1.651e-05,115.12,115.11,18.74075182]
[1743741003318,1.651e-05,115.12,115.11,50.34075182]
[1743741008324,41.65015182,115.19,115.17,8.6855]
[1743741008622,10.05015182,115.19,115.17,8.6855]
[1743741008815,18.73485182,115.19,115.17,8.6855]
[1743741009524,18.79380909,115.19,115.17,8.74082776]
[1743741010625,8.6853,115.18,115.17,0.05532776]
[1743741012423,18.79390909,115.19,115.17,0.05532776]
[1743741013422,8.6853,115.18,115.17,0.05532776]
[1743741013622,18.73545182,115.18,115.17,0.05532776]
[1743741017222,10.05015182,115.18,115.17,8.74142776]
[1743741019424,18.79410909,115.19,115.17,8.74142776]
[1743741019932,10.05015182,115.18,115.04,929.54]
[1743741020126,10.05015182,115.11,115.05,6.8121]
[1743741020426,31.58,115.12,115.08,10.05015182]
[1743741020620,2.1821,115.17,115.08,10.05015182]
[1743741020817,31.6,115.16,115.1,10.05015182]
[1743741021018,41.65015182,115.16,115.1,10.05015182]
[1743741021230,0.05958741,115.14,115.12,0.05572356]
[1743741021528,0.05958741,115.14,115.12,8.74522356]
[1743741021929,10.10973923,115.14,115.12,0.05572356]
[1743741022730,8.6891,115.13,115.12,0.05572356]
[1743741023232,0.05958741,115.14,115.12,0.05572356]
[1743741023530,0.05958741,115.14,115.13,8.6891]
[1743741023930,0.05958741,115.14,115.13,18.73925182]
[1743741024230,41.73015182,115.19,115.13,41.73015182]
[1743741024431,10.05015182,115.18,115.13,41.73015182]
[1743741024623,18.73575182,115.18,115.15,8.6871]
[1743741025229,18.80071356,115.18,115.15,8.74516531]
[1743741025436,18.73635182,115.17,115.15,0.05806531]
[1743741027739,10.05015182,115.17,115.15,8.74546531]
[1743741029137,18.73625182,115.17,115.15,8.74546531]
[1743741029537,10.05015182,115.17,115.15,8.74546531]
[1743741030540,18.73635182,115.17,115.15,8.74546531]
[1743741031238,10.05015182,115.17,115.16,8.6868]
[1743741031437,10.11511356,115.18,115.16,8.6868]
[1743741031639,0.06496174,115.18,115.15,0.05806531]
[1743741032141,0.06496174,115.18,115.17,8.6861]
[1743741036243,18.80041356,115.18,115.16,8.6864]
[1743741036444,10.05015182,115.17,115.15,0.05806531]
[1743741037745,10.05015182,115.17,115.16,8.6868]
[1743741038644,0.06496174,115.18,115.17,8.6861]
[1743741038645,10.11511356,115.18,115.17,8.6861]
[1743741040146,0.06496174,115.18,115.17,8.6861]
[1743741043049,8.75026174,115.18,115.16,8.6865]
[1743741044446,0.06496174,115.18,115.15,0.05806531]
[1743741044646,10.11511356,115.18,115.15,0.05806531]
[1743741045651,8.6861,115.17,115.15,8.74516531]
[1743741045847,10.05015182,115.17,115.15,0.05806531]
[1743741046052,10.05015182,115.16,115.15,0.05806531]
[1743741046552,18.73695182,115.16,115.15,0.05806531]
[1743741052955,8.6892,115.13,115.09,551.95015182]
[1743741053155,8.6892,115.13,115.09,583.53015182]
[1743741053452,8.6892,115.13,115.11,8.69]
[1743741053654,8.6892,115.13,115.09,583.53015182]
[1743741054156,0.0635105,115.12,115.1,0.05925697]
[1743741054360,0.0635105,115.12,115.11,8.69]
[1743741055148,10.11366232,115.12,115.1,0.05925697]
[1743741055354,10.05015182,115.11,115.1,0.05925697]
[1743741055657,18.74075182,115.11,115.1,0.05925697]
[1743741056360,0.0635105,115.12,115.1,0.05925697]
[1743741057058,0.0635105,115.12,115.11,8.6906]
[1743741057559,8.7533105,115.12,115.1,8.75015697]
[1743741057956,0.0635105,115.12,115.11,8.6906]
[1743741058156,0.0635105,115.12,115.1,0.05925697]
[1743741058654,0.0635105,115.12,115.11,8.6906]
[1743741063662,1.05e-05,115.12,115.11,8.6906]
[1743741063966,1.05e-05,115.12,115.11,18.74075182]
[1743741066271,1.05e-05,115.12,115.11,8.6906]
[1743741080984,1.05e-05,115.12,115.11,50.32075182]
[1743741081178,1.05e-05,115.12,115.11,54.97285182]
[1743741082279,1.05e-05,115.12,115.11,8.6906]
[1743741093292,18.74026232,115.12,115.1,8.75035697]
[1743741093494,10.05015182,115.11,115.1,8.75035697]
[1743741093993,40.2701105,115.12,115.1,8.75035697]
[1743741093994,50.32026232,115.12,115.1,8.75035697]
[1743741097894,50.32026232,115.12,115.11,8.6906]
[1743741097895,31.5800105,115.12,115.11,8.6906]
[1743741098097,1.05e-05,115.12,115.11,8.6906]
[1743741102497,1.05e-05,115.12,115.11,18.74075182]
[1743741107900,1.05e-05,115.12,115.11,50.32075182]
[1743741108103,1.05e-05,115.12,115.11,57.20835182]
[1743741109306,12.01680974,115.19,115.18,8.6853]
[1743741109504,22.06696156,115.19,115.18,8.6853]
[1743741110799,12.01680974,115.19,115.18,8.6853]
[1743741111399,0.05828608,115.2,115.19,8.6846]
[1743741117618,10.05015182,115.25,115.19,10.05015182]
[1743741117823,10.05015182,115.25,115.21,10.05015182]
[1743741118020,41.63015182,115.26,115.21,10.05015182]
[1743741118718,50.30985182,115.26,115.24,8.6805]
[1743741118921,0.06103155,115.25,115.24,8.6805]
[1743741119319,0.06103155,115.25,115.23,8.6812]
[1743741119907,0.06103155,115.25,115.24,8.6808]
[1743741127110,3.155e-05,115.25,115.24,8.6808]
[1743741127710,3.155e-05,115.25,115.24,18.73095182]
[1743741128117,3.155e-05,115.25,115.24,8.6808]
[1743741128312,10.05018337,115.25,115.23,8.6811]
[1743741128512,10.05018337,115.25,115.22,0.05758953]
[1743741129014,10.05018337,115.25,115.23,8.6812]
[1743741130415,18.73028337,115.25,115.23,8.6812]
[1743741130617,10.05018337,115.25,115.24,8.6808]
[1743741130816,10.05018337,115.25,115.22,0.05758953]
[1743741131112,10.05018337,115.25,115.23,8.6814]
[1743741131320,3.155e-05,115.25,115.22,0.05758953]
[1743741132317,3.155e-05,115.25,115.23,8.6815]
[1743741133116,8.68043155,115.25,115.23,8.6815]
[1743741133318,18.73058337,115.25,115.22,8.73948953]
[1743741134312,3.155e-05,115.25,115.22,0.05758953]
[1743741135017,3.155e-05,115.25,115.24,8.6808]
[1743741135217,8.68013155,115.25,115.22,0.05758953]
[1743741135517,18.73028337,115.25,115.22,0.05758953]
[1743741135712,41.61015182,115.24,115.22,0.05758953]
[1743741136019,10.05015182,115.23,115.17,10.05015182]
[1743741136215,10.05015182,115.22,115.2,8.6835]
[1743741136412,18.73285182,115.22,115.2,8.6835]
[1743741136618,18.73285182,115.22,115.17,10.05015182]
[1743741137017,18.73285182,115.22,115.19,8.6838]